{"text_format":"1","workbook":"xlsx","n_sheets":8,"sheets":["Deckblatt","Programme","Belegliste Mittelabruf M2","CSV_M2","M2","Belegliste Mittelabruf NESUR","CSV_NESUR","NESUR"],"not_rendered":{"charts":0,"images":1,"macros":1,"external_links":0,"defined_names":13,"comments":0,"pivot_tables":0},"unopened":[],"bounds":{"document_bytes":16777216,"sheet_cells":100000,"rows_first":2000,"rows_last":500,"rows_between":2000,"halvings":0,"cell_chars":16384,"cell_head_chars":4096},"cells_cut":0,"cells_raw":0,"read":"whole","date_system":"1900"}

{"sheet":"Deckblatt","index":0,"n_rows":22,"n_cols":6,"rows_kept":22,"cut":false,"hidden":false,"merged":[[5,1,5,7],[6,1,6,7],[7,1,7,7],[14,1,14,4],[14,5,14,7],[21,1,21,7],[14,16,14,19],[16,1,16,4],[16,5,16,7],[18,1,18,4],[20,1,20,4],[18,5,18,7],[14,10,14,13]]}
[]
[]
[]
[]
[]
[null,"Belegliste"]
[null,"der"]
[null,"Investitionsbank des Landes Brandenburg"]
[]
[]
[]
[]
[null,"Allgemeine Daten zur Förderung:"]
[]
[null,"Wählen Sie bitte das Förderprogramm aus:"]
[null,null,null,null,null,{"$f":"SUBSTITUTE(F15,\"/\",\"_\")","v":""}]
[null,"Antragsnummer:"]
[]
[null,"Nummer des Mittelabrufes:"]
[]
[]
[null,"Hinweis: Bitte reichen Sie die Belegliste inklusive Deckblatt via E-Mail oder Datenträger SOWIE ausgedruckt in Papierform ein."]

{"sheet":"Programme","index":1,"n_rows":3,"n_cols":8,"rows_kept":3,"cut":false,"hidden":true,"merged":[[0,0,0,1]]}
["Programme",null,null,"Aktuell",null,"Zeilen",null,"Prüfung"]
["Markterschließung und Messen (M2)","M2",null,null,null,5,null,"False"]
["Nachhaltige Entwicklung von Stadt und Umland (KMU)","NESUR"]

{"sheet":"Belegliste Mittelabruf M2","index":2,"n_rows":10,"n_cols":15,"rows_kept":10,"cut":false,"hidden":true,"merged":[[0,14,2,14],[0,13,1,13],[0,12,1,12],[0,0,2,0],[0,1,2,1],[0,2,2,2],[0,3,2,3],[0,4,2,4],[0,5,2,5],[0,7,2,7],[0,8,1,8],[0,9,2,9],[0,6,2,6],[0,10,1,10],[0,11,1,11]]}
["Lfd.\nNr.","Kostengruppe/\nAusgabenposition","Vergaberelevanz","Zahlungsempfänger\n(Rechnungssteller)","Leistungsbezeichnung","Rechnungsnummer","Vertragsabschluss/\nDatum Bestellung","bezahlt am","Rechnungsbetrag nach Abzügen\nbrutto","Vorsteuerabzug, ja","Rechnungsbetrag nach Abzügen\nnetto","nicht\nzuwendungsfähiger\nBetrag","zuwendungsfähiger\nBetrag","anerkannter\nzuwendungsfähiger\nBetrag","Bemerkungen Kunde"]
[null,null,null,"Leistungs-  bezeichnung"]
[null,null,null,null,null,null,null,"(EUR)","(EUR)","(EUR)","(EUR)","(EUR)","(EUR)","(EUR)"]
["a","b","c","d","e","f","g","h","i","j","k","l","k-l","m","o"]
[0,null,null,null,null,null,null,null,{"$f":"SUBTOTAL(9,I6:I10)","v":0},null,{"$f":"SUBTOTAL(9,K6:K10)","v":0},{"$f":"SUBTOTAL(9,L6:L10)","v":0},{"$f":"SUBTOTAL(9,M6:M10)","v":0},{"$f":"SUBTOTAL(9,N6:N9)","v":0}]
[{"$f":"A5+1","v":1},null,null,null,null,null,null,null,null,null,null,null,{"$f":"IF(K6=\"\",\"\",K6-L6)","v":""},{"$f":"M6","v":""}]
[{"$f":"A6+1","v":2},null,null,null,null,null,null,null,null,null,null,null,{"$f":"IF(K7=\"\",\"\",K7-L7)","v":""},{"$f":"M7","v":""}]
[{"$f":"A7+1","v":3},null,null,null,null,null,null,null,null,null,null,null,"",""]
[4,null,null,null,null,null,null,null,null,null,null,null,"",""]
[5,null,null,null,null,null,null,null,null,null,null,null,"",""]

{"sheet":"CSV_M2","index":3,"n_rows":6,"n_cols":14,"rows_kept":6,"cut":false,"hidden":true,"merged":[]}
["Kostengruppe/Ausgabenposition","Vergaberelevanz","Zahlungsempfaenger (Rechnungssteller)","Leistungsbezeichnung","Rg-Nr.","Vertragsabschluss/Datum Bestellung","bezahlt am","Rechnungsbetrag nach Abzuegen brutto (EUR)","Vorsteuerabzug, ja","Rechnungsbetrag nach Abzuegen netto (EUR)","nicht zuwendungsfaehiger Betrag (EUR)","zuwendungsfaehiger Betrag (EUR)","anerkannter zuwendungsfaehiger Betrag (EUR)","Bemerkungen Kunde"]
[{"$f":"IF('Belegliste Mittelabruf M2'!B6=\"\",\"\",VLOOKUP('Belegliste Mittelabruf M2'!B6,Kostenarten_M2,2,))","v":""},{"$f":"IF('Belegliste Mittelabruf M2'!C6=\"\",\"\",VLOOKUP('Belegliste Mittelabruf M2'!C6,'M2'!$D$2:$E$2,2))","v":""},{"$f":"IF('Belegliste Mittelabruf M2'!D6=\"\",\"\",'Belegliste Mittelabruf M2'!D6)","v":""},{"$f":"IF('Belegliste Mittelabruf M2'!E6=\"\",\"\",'Belegliste Mittelabruf M2'!E6)","v":""},{"$f":"IF('Belegliste Mittelabruf M2'!F6=\"\",\"\",'Belegliste Mittelabruf M2'!F6)","v":""},{"$f":"IF('Belegliste Mittelabruf M2'!G6=\"\",\"\",'Belegliste Mittelabruf M2'!G6)","v":""},{"$f":"IF('Belegliste Mittelabruf M2'!H6=\"\",\"\",'Belegliste Mittelabruf M2'!H6)","v":""},{"$f":"IF('Belegliste Mittelabruf M2'!I6=\"\",\"\",ROUND('Belegliste Mittelabruf M2'!I6,2))","v":""},{"$f":"IF('Belegliste Mittelabruf M2'!J6=\"\",\"\",IF(VLOOKUP('Belegliste Mittelabruf M2'!J6,'M2'!$G$2:$H$3,2)=0,\"\",(VLOOKUP('Belegliste Mittelabruf M2'!J6,'M2'!$G$2:$H$3,2))))","v":""},{"$f":"IF('Belegliste Mittelabruf M2'!K6=\"\",\"\",ROUND('Belegliste Mittelabruf M2'!K6,2))","v":""},{"$f":"IF('Belegliste Mittelabruf M2'!L6=\"\",\"\",ROUND('Belegliste Mittelabruf M2'!L6,2))","v":""},{"$f":"IF('Belegliste Mittelabruf M2'!M6=\"\",\"\",ROUND('Belegliste Mittelabruf M2'!M6,2))","v":""},{"$f":"IF('Belegliste Mittelabruf M2'!N6=\"\",\"\",ROUND('Belegliste Mittelabruf M2'!N6,2))","v":""},{"$f":"IF('Belegliste Mittelabruf M2'!O6=\"\",\"\",'Belegliste Mittelabruf M2'!O6)","v":""}]
[{"$f":"IF('Belegliste Mittelabruf M2'!B7=\"\",\"\",VLOOKUP('Belegliste Mittelabruf M2'!B7,Kostenarten_M2,2,))","v":""},{"$f":"IF('Belegliste Mittelabruf M2'!C7=\"\",\"\",VLOOKUP('Belegliste Mittelabruf M2'!C7,'M2'!$D$2:$E$2,2))","v":""},{"$f":"IF('Belegliste Mittelabruf M2'!D7=\"\",\"\",'Belegliste Mittelabruf M2'!D7)","v":""},{"$f":"IF('Belegliste Mittelabruf M2'!E7=\"\",\"\",'Belegliste Mittelabruf M2'!E7)","v":""},{"$f":"IF('Belegliste Mittelabruf M2'!F7=\"\",\"\",'Belegliste Mittelabruf M2'!F7)","v":""},{"$f":"IF('Belegliste Mittelabruf M2'!G7=\"\",\"\",'Belegliste Mittelabruf M2'!G7)","v":""},{"$f":"IF('Belegliste Mittelabruf M2'!H7=\"\",\"\",'Belegliste Mittelabruf M2'!H7)","v":""},{"$f":"IF('Belegliste Mittelabruf M2'!I7=\"\",\"\",ROUND('Belegliste Mittelabruf M2'!I7,2))","v":""},{"$f":"IF('Belegliste Mittelabruf M2'!J7=\"\",\"\",IF(VLOOKUP('Belegliste Mittelabruf M2'!J7,'M2'!$G$2:$H$3,2)=0,\"\",(VLOOKUP('Belegliste Mittelabruf M2'!J7,'M2'!$G$2:$H$3,2))))","v":""},{"$f":"IF('Belegliste Mittelabruf M2'!K7=\"\",\"\",ROUND('Belegliste Mittelabruf M2'!K7,2))","v":""},{"$f":"IF('Belegliste Mittelabruf M2'!L7=\"\",\"\",ROUND('Belegliste Mittelabruf M2'!L7,2))","v":""},{"$f":"IF('Belegliste Mittelabruf M2'!M7=\"\",\"\",ROUND('Belegliste Mittelabruf M2'!M7,2))","v":""},{"$f":"IF('Belegliste Mittelabruf M2'!N7=\"\",\"\",ROUND('Belegliste Mittelabruf M2'!N7,2))","v":""},{"$f":"IF('Belegliste Mittelabruf M2'!O7=\"\",\"\",'Belegliste Mittelabruf M2'!O7)","v":""}]
[{"$f":"IF('Belegliste Mittelabruf M2'!B8=\"\",\"\",VLOOKUP('Belegliste Mittelabruf M2'!B8,Kostenarten_M2,2,))","v":""},{"$f":"IF('Belegliste Mittelabruf M2'!C8=\"\",\"\",VLOOKUP('Belegliste Mittelabruf M2'!C8,'M2'!$D$2:$E$2,2))","v":""},{"$f":"IF('Belegliste Mittelabruf M2'!D8=\"\",\"\",'Belegliste Mittelabruf M2'!D8)","v":""},{"$f":"IF('Belegliste Mittelabruf M2'!E8=\"\",\"\",'Belegliste Mittelabruf M2'!E8)","v":""},{"$f":"IF('Belegliste Mittelabruf M2'!F8=\"\",\"\",'Belegliste Mittelabruf M2'!F8)","v":""},{"$f":"IF('Belegliste Mittelabruf M2'!G8=\"\",\"\",'Belegliste Mittelabruf M2'!G8)","v":""},{"$f":"IF('Belegliste Mittelabruf M2'!H8=\"\",\"\",'Belegliste Mittelabruf M2'!H8)","v":""},{"$f":"IF('Belegliste Mittelabruf M2'!I8=\"\",\"\",ROUND('Belegliste Mittelabruf M2'!I8,2))","v":""},{"$f":"IF('Belegliste Mittelabruf M2'!J8=\"\",\"\",IF(VLOOKUP('Belegliste Mittelabruf M2'!J8,'M2'!$G$2:$H$3,2)=0,\"\",(VLOOKUP('Belegliste Mittelabruf M2'!J8,'M2'!$G$2:$H$3,2))))","v":""},{"$f":"IF('Belegliste Mittelabruf M2'!K8=\"\",\"\",ROUND('Belegliste Mittelabruf M2'!K8,2))","v":""},{"$f":"IF('Belegliste Mittelabruf M2'!L8=\"\",\"\",ROUND('Belegliste Mittelabruf M2'!L8,2))","v":""},{"$f":"IF('Belegliste Mittelabruf M2'!M8=\"\",\"\",ROUND('Belegliste Mittelabruf M2'!M8,2))","v":""},{"$f":"IF('Belegliste Mittelabruf M2'!N8=\"\",\"\",ROUND('Belegliste Mittelabruf M2'!N8,2))","v":""},{"$f":"IF('Belegliste Mittelabruf M2'!O8=\"\",\"\",'Belegliste Mittelabruf M2'!O8)","v":""}]
[{"$f":"IF('Belegliste Mittelabruf M2'!B9=\"\",\"\",VLOOKUP('Belegliste Mittelabruf M2'!B9,Kostenarten_M2,2,))","v":""},{"$f":"IF('Belegliste Mittelabruf M2'!C9=\"\",\"\",VLOOKUP('Belegliste Mittelabruf M2'!C9,'M2'!$D$2:$E$2,2))","v":""},{"$f":"IF('Belegliste Mittelabruf M2'!D9=\"\",\"\",'Belegliste Mittelabruf M2'!D9)","v":""},{"$f":"IF('Belegliste Mittelabruf M2'!E9=\"\",\"\",'Belegliste Mittelabruf M2'!E9)","v":""},{"$f":"IF('Belegliste Mittelabruf M2'!F9=\"\",\"\",'Belegliste Mittelabruf M2'!F9)","v":""},{"$f":"IF('Belegliste Mittelabruf M2'!G9=\"\",\"\",'Belegliste Mittelabruf M2'!G9)","v":""},{"$f":"IF('Belegliste Mittelabruf M2'!H9=\"\",\"\",'Belegliste Mittelabruf M2'!H9)","v":""},{"$f":"IF('Belegliste Mittelabruf M2'!I9=\"\",\"\",ROUND('Belegliste Mittelabruf M2'!I9,2))","v":""},{"$f":"IF('Belegliste Mittelabruf M2'!J9=\"\",\"\",IF(VLOOKUP('Belegliste Mittelabruf M2'!J9,'M2'!$G$2:$H$3,2)=0,\"\",(VLOOKUP('Belegliste Mittelabruf M2'!J9,'M2'!$G$2:$H$3,2))))","v":""},{"$f":"IF('Belegliste Mittelabruf M2'!K9=\"\",\"\",ROUND('Belegliste Mittelabruf M2'!K9,2))","v":""},{"$f":"IF('Belegliste Mittelabruf M2'!L9=\"\",\"\",ROUND('Belegliste Mittelabruf M2'!L9,2))","v":""},{"$f":"IF('Belegliste Mittelabruf M2'!M9=\"\",\"\",ROUND('Belegliste Mittelabruf M2'!M9,2))","v":""},{"$f":"IF('Belegliste Mittelabruf M2'!N9=\"\",\"\",ROUND('Belegliste Mittelabruf M2'!N9,2))","v":""},{"$f":"IF('Belegliste Mittelabruf M2'!O9=\"\",\"\",'Belegliste Mittelabruf M2'!O9)","v":""}]
[{"$f":"IF('Belegliste Mittelabruf M2'!B10=\"\",\"\",VLOOKUP('Belegliste Mittelabruf M2'!B10,Kostenarten_M2,2,))","v":""},{"$f":"IF('Belegliste Mittelabruf M2'!C10=\"\",\"\",VLOOKUP('Belegliste Mittelabruf M2'!C10,'M2'!$D$2:$E$2,2))","v":""},{"$f":"IF('Belegliste Mittelabruf M2'!D10=\"\",\"\",'Belegliste Mittelabruf M2'!D10)","v":""},{"$f":"IF('Belegliste Mittelabruf M2'!E10=\"\",\"\",'Belegliste Mittelabruf M2'!E10)","v":""},{"$f":"IF('Belegliste Mittelabruf M2'!F10=\"\",\"\",'Belegliste Mittelabruf M2'!F10)","v":""},{"$f":"IF('Belegliste Mittelabruf M2'!G10=\"\",\"\",'Belegliste Mittelabruf M2'!G10)","v":""},{"$f":"IF('Belegliste Mittelabruf M2'!H10=\"\",\"\",'Belegliste Mittelabruf M2'!H10)","v":""},{"$f":"IF('Belegliste Mittelabruf M2'!I10=\"\",\"\",ROUND('Belegliste Mittelabruf M2'!I10,2))","v":""},{"$f":"IF('Belegliste Mittelabruf M2'!J10=\"\",\"\",IF(VLOOKUP('Belegliste Mittelabruf M2'!J10,'M2'!$G$2:$H$3,2)=0,\"\",(VLOOKUP('Belegliste Mittelabruf M2'!J10,'M2'!$G$2:$H$3,2))))","v":""},{"$f":"IF('Belegliste Mittelabruf M2'!K10=\"\",\"\",ROUND('Belegliste Mittelabruf M2'!K10,2))","v":""},{"$f":"IF('Belegliste Mittelabruf M2'!L10=\"\",\"\",ROUND('Belegliste Mittelabruf M2'!L10,2))","v":""},{"$f":"IF('Belegliste Mittelabruf M2'!M10=\"\",\"\",ROUND('Belegliste Mittelabruf M2'!M10,2))","v":""},{"$f":"IF('Belegliste Mittelabruf M2'!N10=\"\",\"\",ROUND('Belegliste Mittelabruf M2'!N10,2))","v":""},{"$f":"IF('Belegliste Mittelabruf M2'!O10=\"\",\"\",'Belegliste Mittelabruf M2'!O10)","v":""}]

{"sheet":"M2","index":4,"n_rows":14,"n_cols":8,"rows_kept":14,"cut":false,"hidden":true,"merged":[[0,0,0,1],[0,3,0,4],[0,6,0,7]]}
["Kostenarten",null,null,"Vergaberelevanz",null,null,"Vorsteuerabzug"]
["Ausgaben für Messen",573,null,"nicht vergaberelevant",0,null,"Ja","X"]
["Beratung und Dienstleistungen",575,null,null,null,null,"Nein"]
["Beratung/Erstellung Marktanalyse",576]
["Erst/Berat  fremdsprach. Angebote/Übersetzung",578]
["Erst/Berat  Umsetz Markterschließungskonzepte",577]
["Nachbearbeitung u. Sicherung des Erfolges",582]
["Personalausgaben für Assistenten",579]
["Reiseausgaben",376]
["Schulungs- und Informationsveranstaltungen",580]
["Transportausgaben",574]
["Unternehmertreffen und Kooperationsbörsen",581]
["Zertifizierung/Anpassung von Produkten",427]
["sonstige Ausgaben",139]

{"sheet":"Belegliste Mittelabruf NESUR","index":5,"n_rows":10,"n_cols":14,"rows_kept":10,"cut":false,"hidden":true,"merged":[[0,11,1,11],[0,12,1,12],[0,13,2,13],[0,5,2,5],[0,6,2,6],[0,7,1,7],[0,8,2,8],[0,9,1,9],[0,10,1,10],[0,0,2,0],[0,1,2,1],[0,2,2,2],[0,3,2,3],[0,4,2,4]]}
["Lfd.\nNr.","Kostengruppe/\nAusgabenposition","Zahlungsempfänger\n(Rechnungssteller)","Leistungsbezeichnung","Rechnungsnummer","Vertragsabschluss/\nDatum Bestellung","bezahlt am","Rechnungsbetrag nach Abzügen\nbrutto","Vorsteuerabzug, ja","Rechnungsbetrag nach Abzügen\nnetto","nicht\nzuwendungsfähiger\nBetrag","zuwendungsfähiger\nBetrag","anerkannter\nzuwendungsfähiger\nBetrag","Bemerkungen Kunde"]
[null,null,"Leistungs-  bezeichnung"]
[null,null,null,null,null,null,"(EUR)","(EUR)","(EUR)","(EUR)","(EUR)","(EUR)","(EUR)"]
["a","b","c","d","e","f","g","h","j","j","k","j-k","l","n"]
[0,null,null,null,null,null,null,{"$f":"SUBTOTAL(9,H6:H10)","v":0},null,{"$f":"SUBTOTAL(9,J6:J10)","v":0},{"$f":"SUBTOTAL(9,K6:K10)","v":0},{"$f":"SUBTOTAL(9,L6:L10)","v":0},{"$f":"SUBTOTAL(9,M6:M9)","v":0}]
[{"$f":"A5+1","v":1},null,null,null,null,null,null,null,null,null,null,{"$f":"IF(J6=\"\",\"\",J6-K6)","v":""},{"$f":"L6","v":""}]
[{"$f":"A6+1","v":2},null,null,null,null,null,null,null,null,null,null,{"$f":"IF(J7=\"\",\"\",J7-K7)","v":""},{"$f":"L7","v":""}]
[{"$f":"A7+1","v":3},null,null,null,null,null,null,null,null,null,null,"",""]
[4,null,null,null,null,null,null,null,null,null,null,"",""]
[5,null,null,null,null,null,null,null,null,null,null,"",""]

{"sheet":"CSV_NESUR","index":6,"n_rows":6,"n_cols":13,"rows_kept":6,"cut":false,"hidden":true,"merged":[]}
["Kostengruppe/Ausgabenposition","Zahlungsempfaenger (Rechnungssteller)","Leistungsbezeichnung","Rg-Nr.","Vertragsabschluss/Datum Bestellung","bezahlt am","Rechnungsbetrag nach Abzuegen brutto (EUR)","Vorsteuerabzug, ja","Rechnungsbetrag nach Abzuegen netto (EUR)","nicht zuwendungsfaehiger Betrag (EUR)","zuwendungsfaehiger Betrag (EUR)","anerkannter zuwendungsfaehiger Betrag (EUR)","Bemerkungen Kunde"]
[{"$f":"IF('Belegliste Mittelabruf NESUR'!B6=\"\",\"\",VLOOKUP('Belegliste Mittelabruf NESUR'!B6,Kostenarten_KMU,2,))","v":""},{"$f":"IF('Belegliste Mittelabruf NESUR'!C6=\"\",\"\",'Belegliste Mittelabruf NESUR'!C6)","v":""},{"$f":"IF('Belegliste Mittelabruf NESUR'!D6=\"\",\"\",'Belegliste Mittelabruf NESUR'!D6)","v":""},{"$f":"IF('Belegliste Mittelabruf NESUR'!E6=\"\",\"\",'Belegliste Mittelabruf NESUR'!E6)","v":""},{"$f":"IF('Belegliste Mittelabruf NESUR'!F6=\"\",\"\",'Belegliste Mittelabruf NESUR'!F6)","v":""},{"$f":"IF('Belegliste Mittelabruf NESUR'!G6=\"\",\"\",'Belegliste Mittelabruf NESUR'!G6)","v":""},{"$f":"IF('Belegliste Mittelabruf NESUR'!H6=\"\",\"\",ROUND('Belegliste Mittelabruf NESUR'!H6,2))","v":""},{"$f":"IF('Belegliste Mittelabruf NESUR'!I6=\"\",\"\",IF(VLOOKUP('Belegliste Mittelabruf NESUR'!I6,NESUR!$D$2:$E$3,2)=0,\"\",VLOOKUP('Belegliste Mittelabruf NESUR'!I6,NESUR!$D$2:$E$3,2)))","v":""},{"$f":"IF('Belegliste Mittelabruf NESUR'!J6=\"\",\"\",ROUND('Belegliste Mittelabruf NESUR'!J6,2))","v":""},{"$f":"IF('Belegliste Mittelabruf NESUR'!K6=\"\",\"\",ROUND('Belegliste Mittelabruf NESUR'!K6,2))","v":""},{"$f":"IF('Belegliste Mittelabruf NESUR'!L6=\"\",\"\",ROUND('Belegliste Mittelabruf NESUR'!L6,2))","v":""},{"$f":"IF('Belegliste Mittelabruf NESUR'!M6=\"\",\"\",ROUND('Belegliste Mittelabruf NESUR'!M6,2))","v":""},{"$f":"IF('Belegliste Mittelabruf NESUR'!N6=\"\",\"\",'Belegliste Mittelabruf NESUR'!N6)","v":""}]
[{"$f":"IF('Belegliste Mittelabruf NESUR'!B7=\"\",\"\",VLOOKUP('Belegliste Mittelabruf NESUR'!B7,Kostenarten_KMU,2,))","v":""},{"$f":"IF('Belegliste Mittelabruf NESUR'!C7=\"\",\"\",'Belegliste Mittelabruf NESUR'!C7)","v":""},{"$f":"IF('Belegliste Mittelabruf NESUR'!D7=\"\",\"\",'Belegliste Mittelabruf NESUR'!D7)","v":""},{"$f":"IF('Belegliste Mittelabruf NESUR'!E7=\"\",\"\",'Belegliste Mittelabruf NESUR'!E7)","v":""},{"$f":"IF('Belegliste Mittelabruf NESUR'!F7=\"\",\"\",'Belegliste Mittelabruf NESUR'!F7)","v":""},{"$f":"IF('Belegliste Mittelabruf NESUR'!G7=\"\",\"\",'Belegliste Mittelabruf NESUR'!G7)","v":""},{"$f":"IF('Belegliste Mittelabruf NESUR'!H7=\"\",\"\",ROUND('Belegliste Mittelabruf NESUR'!H7,2))","v":""},{"$f":"IF('Belegliste Mittelabruf NESUR'!I7=\"\",\"\",IF(VLOOKUP('Belegliste Mittelabruf NESUR'!I7,NESUR!$D$2:$E$3,2)=0,\"\",VLOOKUP('Belegliste Mittelabruf NESUR'!I7,NESUR!$D$2:$E$3,2)))","v":""},{"$f":"IF('Belegliste Mittelabruf NESUR'!J7=\"\",\"\",ROUND('Belegliste Mittelabruf NESUR'!J7,2))","v":""},{"$f":"IF('Belegliste Mittelabruf NESUR'!K7=\"\",\"\",ROUND('Belegliste Mittelabruf NESUR'!K7,2))","v":""},{"$f":"IF('Belegliste Mittelabruf NESUR'!L7=\"\",\"\",ROUND('Belegliste Mittelabruf NESUR'!L7,2))","v":""},{"$f":"IF('Belegliste Mittelabruf NESUR'!M7=\"\",\"\",ROUND('Belegliste Mittelabruf NESUR'!M7,2))","v":""},{"$f":"IF('Belegliste Mittelabruf NESUR'!N7=\"\",\"\",'Belegliste Mittelabruf NESUR'!N7)","v":""}]
[{"$f":"IF('Belegliste Mittelabruf NESUR'!B8=\"\",\"\",VLOOKUP('Belegliste Mittelabruf NESUR'!B8,Kostenarten_KMU,2,))","v":""},{"$f":"IF('Belegliste Mittelabruf NESUR'!C8=\"\",\"\",'Belegliste Mittelabruf NESUR'!C8)","v":""},{"$f":"IF('Belegliste Mittelabruf NESUR'!D8=\"\",\"\",'Belegliste Mittelabruf NESUR'!D8)","v":""},{"$f":"IF('Belegliste Mittelabruf NESUR'!E8=\"\",\"\",'Belegliste Mittelabruf NESUR'!E8)","v":""},{"$f":"IF('Belegliste Mittelabruf NESUR'!F8=\"\",\"\",'Belegliste Mittelabruf NESUR'!F8)","v":""},{"$f":"IF('Belegliste Mittelabruf NESUR'!G8=\"\",\"\",'Belegliste Mittelabruf NESUR'!G8)","v":""},{"$f":"IF('Belegliste Mittelabruf NESUR'!H8=\"\",\"\",ROUND('Belegliste Mittelabruf NESUR'!H8,2))","v":""},{"$f":"IF('Belegliste Mittelabruf NESUR'!I8=\"\",\"\",IF(VLOOKUP('Belegliste Mittelabruf NESUR'!I8,NESUR!$D$2:$E$3,2)=0,\"\",VLOOKUP('Belegliste Mittelabruf NESUR'!I8,NESUR!$D$2:$E$3,2)))","v":""},{"$f":"IF('Belegliste Mittelabruf NESUR'!J8=\"\",\"\",ROUND('Belegliste Mittelabruf NESUR'!J8,2))","v":""},{"$f":"IF('Belegliste Mittelabruf NESUR'!K8=\"\",\"\",ROUND('Belegliste Mittelabruf NESUR'!K8,2))","v":""},{"$f":"IF('Belegliste Mittelabruf NESUR'!L8=\"\",\"\",ROUND('Belegliste Mittelabruf NESUR'!L8,2))","v":""},{"$f":"IF('Belegliste Mittelabruf NESUR'!M8=\"\",\"\",ROUND('Belegliste Mittelabruf NESUR'!M8,2))","v":""},{"$f":"IF('Belegliste Mittelabruf NESUR'!N8=\"\",\"\",'Belegliste Mittelabruf NESUR'!N8)","v":""}]
[{"$f":"IF('Belegliste Mittelabruf NESUR'!B9=\"\",\"\",VLOOKUP('Belegliste Mittelabruf NESUR'!B9,Kostenarten_KMU,2,))","v":""},{"$f":"IF('Belegliste Mittelabruf NESUR'!C9=\"\",\"\",'Belegliste Mittelabruf NESUR'!C9)","v":""},{"$f":"IF('Belegliste Mittelabruf NESUR'!D9=\"\",\"\",'Belegliste Mittelabruf NESUR'!D9)","v":""},{"$f":"IF('Belegliste Mittelabruf NESUR'!E9=\"\",\"\",'Belegliste Mittelabruf NESUR'!E9)","v":""},{"$f":"IF('Belegliste Mittelabruf NESUR'!F9=\"\",\"\",'Belegliste Mittelabruf NESUR'!F9)","v":""},{"$f":"IF('Belegliste Mittelabruf NESUR'!G9=\"\",\"\",'Belegliste Mittelabruf NESUR'!G9)","v":""},{"$f":"IF('Belegliste Mittelabruf NESUR'!H9=\"\",\"\",ROUND('Belegliste Mittelabruf NESUR'!H9,2))","v":""},{"$f":"IF('Belegliste Mittelabruf NESUR'!I9=\"\",\"\",IF(VLOOKUP('Belegliste Mittelabruf NESUR'!I9,NESUR!$D$2:$E$3,2)=0,\"\",VLOOKUP('Belegliste Mittelabruf NESUR'!I9,NESUR!$D$2:$E$3,2)))","v":""},{"$f":"IF('Belegliste Mittelabruf NESUR'!J9=\"\",\"\",ROUND('Belegliste Mittelabruf NESUR'!J9,2))","v":""},{"$f":"IF('Belegliste Mittelabruf NESUR'!K9=\"\",\"\",ROUND('Belegliste Mittelabruf NESUR'!K9,2))","v":""},{"$f":"IF('Belegliste Mittelabruf NESUR'!L9=\"\",\"\",ROUND('Belegliste Mittelabruf NESUR'!L9,2))","v":""},{"$f":"IF('Belegliste Mittelabruf NESUR'!M9=\"\",\"\",ROUND('Belegliste Mittelabruf NESUR'!M9,2))","v":""},{"$f":"IF('Belegliste Mittelabruf NESUR'!N9=\"\",\"\",'Belegliste Mittelabruf NESUR'!N9)","v":""}]
[{"$f":"IF('Belegliste Mittelabruf NESUR'!B10=\"\",\"\",VLOOKUP('Belegliste Mittelabruf NESUR'!B10,Kostenarten_KMU,2,))","v":""},{"$f":"IF('Belegliste Mittelabruf NESUR'!C10=\"\",\"\",'Belegliste Mittelabruf NESUR'!C10)","v":""},{"$f":"IF('Belegliste Mittelabruf NESUR'!D10=\"\",\"\",'Belegliste Mittelabruf NESUR'!D10)","v":""},{"$f":"IF('Belegliste Mittelabruf NESUR'!E10=\"\",\"\",'Belegliste Mittelabruf NESUR'!E10)","v":""},{"$f":"IF('Belegliste Mittelabruf NESUR'!F10=\"\",\"\",'Belegliste Mittelabruf NESUR'!F10)","v":""},{"$f":"IF('Belegliste Mittelabruf NESUR'!G10=\"\",\"\",'Belegliste Mittelabruf NESUR'!G10)","v":""},{"$f":"IF('Belegliste Mittelabruf NESUR'!H10=\"\",\"\",ROUND('Belegliste Mittelabruf NESUR'!H10,2))","v":""},{"$f":"IF('Belegliste Mittelabruf NESUR'!I10=\"\",\"\",IF(VLOOKUP('Belegliste Mittelabruf NESUR'!I10,NESUR!$D$2:$E$3,2)=0,\"\",VLOOKUP('Belegliste Mittelabruf NESUR'!I10,NESUR!$D$2:$E$3,2)))","v":""},{"$f":"IF('Belegliste Mittelabruf NESUR'!J10=\"\",\"\",ROUND('Belegliste Mittelabruf NESUR'!J10,2))","v":""},{"$f":"IF('Belegliste Mittelabruf NESUR'!K10=\"\",\"\",ROUND('Belegliste Mittelabruf NESUR'!K10,2))","v":""},{"$f":"IF('Belegliste Mittelabruf NESUR'!L10=\"\",\"\",ROUND('Belegliste Mittelabruf NESUR'!L10,2))","v":""},{"$f":"IF('Belegliste Mittelabruf NESUR'!M10=\"\",\"\",ROUND('Belegliste Mittelabruf NESUR'!M10,2))","v":""},{"$f":"IF('Belegliste Mittelabruf NESUR'!N10=\"\",\"\",'Belegliste Mittelabruf NESUR'!N10)","v":""}]

{"sheet":"NESUR","index":7,"n_rows":13,"n_cols":5,"rows_kept":13,"cut":false,"hidden":true,"merged":[[0,0,0,1],[0,3,0,4]]}
["Kostenarten",null,null,"Vorsteuerabzug"]
["Einrichtungen",656,null,"Ja","X"]
["Gebrauchte Wirtschaftsgüter",262,null,"Nein"]
["Grunderwerb",103]
["Immaterielle Wirtschaftsgüter",122]
["KGR 200 - Herrichten und Erschließen",651]
["KGR 300 - Bauwerk-Baukonstruktionen",787]
["KGR 400 - Bauwerk-Technische Anlagen",788]
["KGR 500 - Außenanlagen",652]
["KGR 600 - Ausstattung und Kunstwerke",653]
["KGR 700 - Baunebenkosten",789]
["Maschinen",655]
["sonstige Ausgaben",816]